[Event "Late-Titled-Tuesday-Blitz-October-17-2023"]
[Site "Chess.com"]
[Date "2023.10.17"]
[Round "6"]
[White "luizzy"]
[Black "Nekoo04"]
[Result "1-0"]
[WhiteElo "2572"]
[BlackElo "2270"]
[TimeControl "180+1"]
[EndTime "15:06:47 PDT"]
[Termination "luizzy won on time"]

1. b3 {[%clk 0:03:00.9]} 1... e5 {[%clk 0:02:57.6]} 2. Bb2 {[%clk 0:03:01.3]}
2... d6 {[%clk 0:02:57.4]} 3. e3 {[%clk 0:03:01.4]} 3... Nf6 {[%clk 0:02:56.4]}
4. d4 {[%clk 0:03:00.1]} 4... Nbd7 {[%clk 0:02:56.1]} 5. Nf3 {[%clk 0:02:56.5]}
5... e4 {[%clk 0:02:55.9]} 6. Nfd2 {[%clk 0:02:56.7]} 6... d5 {[%clk 0:02:56.4]}
7. c4 {[%clk 0:02:54]} 7... c6 {[%clk 0:02:56.9]} 8. Be2 {[%clk 0:02:51.7]} 8...
Bd6 {[%clk 0:02:57.2]} 9. Ba3 {[%clk 0:02:51.3]} 9... Bxa3 {[%clk 0:02:40.1]}
10. Nxa3 {[%clk 0:02:52.2]} 10... Qe7 {[%clk 0:02:32.1]} 11. Qc1 {[%clk
0:02:39.7]} 11... a6 {[%clk 0:02:22.3]} 12. Nc2 {[%clk 0:02:16.5]} 12... O-O
{[%clk 0:02:21.5]} 13. a3 {[%clk 0:01:54.7]} 13... Ne8 {[%clk 0:02:18.3]} 14. b4
{[%clk 0:01:50.5]} 14... f5 {[%clk 0:02:16.1]} 15. Nb3 {[%clk 0:01:47.6]} 15...
Nd6 {[%clk 0:01:31.2]} 16. cxd5 {[%clk 0:01:41.7]} 16... cxd5 {[%clk 0:01:31.2]}
17. g3 {[%clk 0:01:33.2]} 17... Nf6 {[%clk 0:01:20.3]} 18. Qd2 {[%clk
0:01:23.7]} 18... Bd7 {[%clk 0:01:19.4]} 19. a4 {[%clk 0:01:18.4]} 19... Rac8
{[%clk 0:01:05.6]} 20. Nc5 {[%clk 0:01:17.2]} 20... b6 {[%clk 0:00:45.9]} 21.
Nxa6 {[%clk 0:01:15.3]} 21... Nc4 {[%clk 0:00:45.8]} 22. Qc3 {[%clk 0:00:58.9]}
22... Ng4 {[%clk 0:00:32.7]} 23. Qb3 {[%clk 0:00:56.6]} 23... f4 {[%clk
0:00:16.1]} 24. exf4 {[%clk 0:00:42.7]} 24... e3 {[%clk 0:00:10.2]} 25. f3
{[%clk 0:00:43.1]} 25... Nf2 {[%clk 0:00:07]} 26. Rg1 {[%clk 0:00:42.4]} 26...
Nh3 {[%clk 0:00:06.5]} 27. Rg2 {[%clk 0:00:40.1]} 27... Nxf4 {[%clk 0:00:04.2]}
28. gxf4 {[%clk 0:00:39.7]} 28... Qh4+ {[%clk 0:00:04.7]} 29. Kd1 {[%clk
0:00:33]} 29... Bh3 {[%clk 0:00:04.5]} 30. Rg3 {[%clk 0:00:30.7]} 30... Rxf4
{[%clk 0:00:04.4]} 31. Nxe3 {[%clk 0:00:25.6]} 31... Be6 {[%clk 0:00:04.1]} 32.
Nxc4 {[%clk 0:00:14.3]} 32... dxc4 {[%clk 0:00:03.7]} 33. Qe3 {[%clk 0:00:11.9]}
33... Rxd4+ {[%clk 0:00:04]} 34. Kc2 {[%clk 0:00:10.7]} 34... Bf5+ {[%clk
0:00:04.5]} 35. Kb2 {[%clk 0:00:06.1]} 35... c3+ {[%clk 0:00:04.4]} 36. Ka3
{[%clk 0:00:06.8]} 36... Rcd8 {[%clk 0:00:02.4]} 37. Rag1 {[%clk 0:00:07.1]}
37... R4d7 {[%clk 0:00:01.5]} 38. Bb5 {[%clk 0:00:05.5]} 38... Rf7 {[%clk
0:00:01]} 39. Bc4 {[%clk 0:00:05.4]} 1-0

[Event "Late-Titled-Tuesday-Blitz-October-17-2023"]
[Site "Chess.com"]
[Date "2023.10.17"]
[Round "6"]
[White "FuenfgegenWilly"]
[Black "DawidCzerw"]
[Result "1-0"]
[WhiteElo "2389"]
[BlackElo "2533"]
[TimeControl "180+1"]
[EndTime "15:06:47 PDT"]
[Termination "FuenfgegenWilly won on time"]

1. Nf3 {[%clk 0:03:00.9]} 1... c5 {[%clk 0:03:00.1]} 2. c4 {[%clk 0:03:00.1]}
2... Nc6 {[%clk 0:03:00.1]} 3. g3 {[%clk 0:03:00.5]} 3... g6 {[%clk 0:03:00.7]}
4. Bg2 {[%clk 0:03:00.1]} 4... Bg7 {[%clk 0:03:01.3]} 5. Nc3 {[%clk 0:03:00.8]}
5... Nh6 {[%clk 0:03:01.5]} 6. b3 {[%clk 0:03:00.8]} 6... Nf5 {[%clk 0:03:01.7]}
7. Bb2 {[%clk 0:03:00.8]} 7... h5 {[%clk 0:03:01.9]} 8. h4 {[%clk 0:03:00]} 8...
d6 {[%clk 0:03:01.4]} 9. O-O {[%clk 0:02:59.5]} 9... Bd7 {[%clk 0:02:58.8]} 10.
e3 {[%clk 0:02:59]} 10... a6 {[%clk 0:02:57.6]} 11. Qc2 {[%clk 0:02:55.7]} 11...
e5 {[%clk 0:02:54.5]} 12. Nd5 {[%clk 0:02:53.4]} 12... f6 {[%clk 0:02:41.1]} 13.
d4 {[%clk 0:02:47.8]} 13... g5 {[%clk 0:02:38.5]} 14. hxg5 {[%clk 0:02:45.8]}
14... fxg5 {[%clk 0:02:37.6]} 15. dxc5 {[%clk 0:02:35.7]} 15... g4 {[%clk
0:02:28.9]} 16. Nh4 {[%clk 0:02:33.8]} 16... Nxh4 {[%clk 0:02:22.7]} 17. gxh4
{[%clk 0:02:34.7]} 17... O-O {[%clk 0:02:14]} 18. cxd6 {[%clk 0:02:26.2]} 18...
Qxh4 {[%clk 0:02:12.3]} 19. Rad1 {[%clk 0:02:01.8]} 19... Bf5 {[%clk 0:02:09.9]}
20. Be4 {[%clk 0:01:43.4]} 20... g3 {[%clk 0:02:08.7]} 21. fxg3 {[%clk
0:01:42.6]} 21... Qxe4 {[%clk 0:02:05.7]} 22. Qxe4 {[%clk 0:01:40.4]} 22... Bxe4
{[%clk 0:02:05.8]} 23. Nc7 {[%clk 0:01:32.4]} 23... Rxf1+ {[%clk 0:01:57.1]} 24.
Rxf1 {[%clk 0:01:26.1]} 24... Rf8 {[%clk 0:01:55.5]} 25. Rd1 {[%clk 0:01:23.9]}
25... Rf3 {[%clk 0:01:44.9]} 26. d7 {[%clk 0:01:14.2]} 26... Nd8 {[%clk
0:01:41.2]} 27. Ba3 {[%clk 0:01:10]} 27... Bf6 {[%clk 0:01:34.7]} 28. Ne8 {[%clk
0:01:07.5]} 28... Bg5 {[%clk 0:01:31.9]} 29. Bc5 {[%clk 0:00:53.5]} 29... Rxg3+
{[%clk 0:01:21.8]} 30. Kf1 {[%clk 0:00:49.4]} 30... h4 {[%clk 0:01:10.5]} 31.
Nd6 {[%clk 0:00:48]} 31... Bg6 {[%clk 0:00:39]} 32. Kf2 {[%clk 0:00:42.1]} 32...
Rg4 {[%clk 0:00:05]} 33. Bb6 {[%clk 0:00:39]} 33... h3 {[%clk 0:00:04.4]} 34.
Bxd8 {[%clk 0:00:32.1]} 34... Bxd8 {[%clk 0:00:05.3]} 35. Nxb7 {[%clk 0:00:33]}
35... Bh4+ {[%clk 0:00:05.3]} 36. Kf3 {[%clk 0:00:31.5]} 36... Bh5 {[%clk
0:00:05.2]} 37. d8=Q+ {[%clk 0:00:28.8]} 37... Bxd8 {[%clk 0:00:05.5]} 38. Rxd8+
{[%clk 0:00:29.7]} 38... Kh7 {[%clk 0:00:05.5]} 39. Kf2 {[%clk 0:00:24.2]} 39...
h2 {[%clk 0:00:05.3]} 40. Rd1 {[%clk 0:00:23]} 40... e4 {[%clk 0:00:03.3]} 41.
Rh1 {[%clk 0:00:22.5]} 41... Rh4 {[%clk 0:00:03.6]} 42. Kg3 {[%clk 0:00:22.5]}
42... Bf3 {[%clk 0:00:02]} 43. Rxh2 {[%clk 0:00:21.7]} 43... Rxh2 {[%clk
0:00:01.3]} 44. Kxh2 {[%clk 0:00:22.6]} 44... Kg6 {[%clk 0:00:02.1]} 45. Kg3
{[%clk 0:00:22.7]} 45... Kf5 {[%clk 0:00:03]} 46. Nc5 {[%clk 0:00:21.1]} 1-0

[Event "Late-Titled-Tuesday-Blitz-October-17-2023"]
[Site "Chess.com"]
[Date "2023.10.17"]
[Round "6"]
[White "zajka-molotok"]
[Black "gmcorrales"]
[Result "0-1"]
[WhiteElo "2557"]
[BlackElo "2841"]
[TimeControl "180+1"]
[EndTime "15:06:53 PDT"]
[Termination "gmcorrales won on time"]

1. e4 {[%clk 0:03:00.9]} 1... c5 {[%clk 0:03:00]} 2. Nf3 {[%clk 0:03:00.5]} 2...
d6 {[%clk 0:03:00.2]} 3. Bb5+ {[%clk 0:03:00]} 3... Nd7 {[%clk 0:02:59.5]} 4. a4
{[%clk 0:02:59.6]} 4... Nf6 {[%clk 0:02:59.6]} 5. Nc3 {[%clk 0:02:59]} 5... a6
{[%clk 0:02:59.1]} 6. Be2 {[%clk 0:02:58.5]} 6... g6 {[%clk 0:02:58.7]} 7. O-O
{[%clk 0:02:58.4]} 7... Bg7 {[%clk 0:02:59.2]} 8. d3 {[%clk 0:02:58.1]} 8... O-O
{[%clk 0:02:59.3]} 9. a5 {[%clk 0:02:58.1]} 9... b5 {[%clk 0:02:58.5]} 10. axb6
{[%clk 0:02:57.3]} 10... Bb7 {[%clk 0:02:58.9]} 11. Bf4 {[%clk 0:02:49.5]} 11...
Nxb6 {[%clk 0:02:58.3]} 12. h3 {[%clk 0:02:41]} 12... e5 {[%clk 0:02:57.4]} 13.
Bg5 {[%clk 0:02:34.8]} 13... h6 {[%clk 0:02:57.3]} 14. Bxf6 {[%clk 0:02:34.4]}
14... Bxf6 {[%clk 0:02:56.8]} 15. Nd2 {[%clk 0:02:33.4]} 15... h5 {[%clk
0:02:56.3]} 16. Nc4 {[%clk 0:02:30.9]} 16... Nxc4 {[%clk 0:02:56]} 17. dxc4
{[%clk 0:02:31.8]} 17... Rb8 {[%clk 0:02:38.8]} 18. Qd3 {[%clk 0:02:25.4]} 18...
Bc8 {[%clk 0:02:38.2]} 19. b3 {[%clk 0:02:23.6]} 19... Bg5 {[%clk 0:02:28.7]}
20. Rfd1 {[%clk 0:02:18.8]} 20... Rb6 {[%clk 0:02:28.6]} 21. Bf1 {[%clk
0:01:29.5]} 21... Kg7 {[%clk 0:02:26.5]} 22. g3 {[%clk 0:01:26.6]} 22... h4
{[%clk 0:02:26.2]} 23. Nd5 {[%clk 0:01:15.4]} 23... Rc6 {[%clk 0:02:25.7]} 24.
f4 {[%clk 0:01:14.9]} 24... Bh6 {[%clk 0:02:18.2]} 25. f5 {[%clk 0:01:08.8]}
25... gxf5 {[%clk 0:02:18.2]} 26. exf5 {[%clk 0:01:07.6]} 26... Qg5 {[%clk
0:02:16.4]} 27. g4 {[%clk 0:01:04.8]} 27... Kh8 {[%clk 0:02:11.1]} 28. Bg2
{[%clk 0:01:03.3]} 28... Bd7 {[%clk 0:01:59.6]} 29. Nc3 {[%clk 0:00:48.5]} 29...
Rb6 {[%clk 0:01:47.5]} 30. Ne4 {[%clk 0:00:46.4]} 30... Qe3+ {[%clk 0:01:47.3]}
31. Kh1 {[%clk 0:00:45.2]} 31... Bc6 {[%clk 0:01:23.6]} 32. Qxe3 {[%clk
0:00:40.4]} 32... Bxe3 {[%clk 0:01:24.5]} 33. Rxd6 {[%clk 0:00:35.6]} 33... Rfb8
{[%clk 0:01:24.6]} 34. Rad1 {[%clk 0:00:32.5]} 34... Bd4 {[%clk 0:01:23.5]} 35.
Kh2 {[%clk 0:00:23.1]} 35... Kg7 {[%clk 0:00:51.1]} 36. Ng5 {[%clk 0:00:14.6]}
36... Be8 {[%clk 0:00:50.5]} 37. Rxb6 {[%clk 0:00:14.2]} 37... Rxb6 {[%clk
0:00:51.4]} 38. Ne4 {[%clk 0:00:14]} 38... a5 {[%clk 0:00:49.8]} 39. c3 {[%clk
0:00:13.4]} 39... Be3 {[%clk 0:00:50.1]} 40. Rd3 {[%clk 0:00:12.7]} 40... Bf4+
{[%clk 0:00:50.1]} 41. Kg1 {[%clk 0:00:12.3]} 41... Rxb3 {[%clk 0:00:51]} 42.
Nxc5 {[%clk 0:00:12.1]} 42... Rb1+ {[%clk 0:00:47.3]} 43. Kf2 {[%clk 0:00:12.2]}
43... Bg3+ {[%clk 0:00:46.8]} 44. Ke2 {[%clk 0:00:11.1]} 44... Rb2+ {[%clk
0:00:46.5]} 45. Kf1 {[%clk 0:00:09.3]} 45... a4 {[%clk 0:00:40.4]} 46. Rd1
{[%clk 0:00:08.9]} 46... a3 {[%clk 0:00:40.2]} 47. Ra1 {[%clk 0:00:09.2]} 47...
a2 {[%clk 0:00:40.5]} 48. Be4 {[%clk 0:00:09.5]} 48... Kf6 {[%clk 0:00:32.3]}
49. Bd3 {[%clk 0:00:08.6]} 49... Bc6 {[%clk 0:00:29.4]} 50. Ne4+ {[%clk
0:00:08.2]} 50... Bxe4 {[%clk 0:00:28.7]} 51. Bxe4 {[%clk 0:00:09.1]} 51... Bf2
{[%clk 0:00:29]} 52. c5 {[%clk 0:00:06.5]} 52... Bxc5 {[%clk 0:00:29]} 53. Ke1
{[%clk 0:00:06.1]} 53... Kg5 {[%clk 0:00:29.1]} 54. Kd1 {[%clk 0:00:05.6]} 54...
Kf4 {[%clk 0:00:29.1]} 55. Kc1 {[%clk 0:00:05.2]} 55... Ba3 {[%clk 0:00:29.4]}
56. Bd5 {[%clk 0:00:03.5]} 56... Rb1+ {[%clk 0:00:28.9]} 57. Kc2 {[%clk
0:00:02.9]} 57... Rxa1 {[%clk 0:00:29.8]} 0-1

[Event "Late-Titled-Tuesday-Blitz-October-17-2023"]
[Site "Chess.com"]
[Date "2023.10.17"]
[Round "6"]
[White "micke12a"]
[Black "Semetey"]
[Result "1/2-1/2"]
[WhiteElo "2373"]
[BlackElo "2534"]
[TimeControl "180+1"]
[EndTime "15:06:58 PDT"]
[Termination "Game drawn by repetition"]

1. d4 {[%clk 0:02:58.4]} 1... a6 {[%clk 0:02:53.5]} 2. c4 {[%clk 0:02:54.4]}
2... c6 {[%clk 0:02:51.9]} 3. Nc3 {[%clk 0:02:52.2]} 3... d5 {[%clk 0:02:51.9]}
4. cxd5 {[%clk 0:02:50.8]} 4... cxd5 {[%clk 0:02:51.6]} 5. Bf4 {[%clk
0:02:51.5]} 5... Nc6 {[%clk 0:02:51.7]} 6. e3 {[%clk 0:02:51.1]} 6... Nf6 {[%clk
0:02:51.7]} 7. Nf3 {[%clk 0:02:50.4]} 7... e6 {[%clk 0:02:51.7]} 8. Rc1 {[%clk
0:02:44.7]} 8... Bd6 {[%clk 0:02:51.5]} 9. Bxd6 {[%clk 0:02:42.9]} 9... Qxd6
{[%clk 0:02:52.4]} 10. Bd3 {[%clk 0:02:42.9]} 10... O-O {[%clk 0:02:51.3]} 11.
O-O {[%clk 0:02:42]} 11... b5 {[%clk 0:02:51.3]} 12. b3 {[%clk 0:02:38.2]} 12...
Bb7 {[%clk 0:02:51.1]} 13. Ne2 {[%clk 0:02:32.3]} 13... Rfc8 {[%clk 0:02:50.4]}
14. Bb1 {[%clk 0:02:30]} 14... g6 {[%clk 0:02:31.7]} 15. Nf4 {[%clk 0:02:28]}
15... b4 {[%clk 0:02:24.4]} 16. Nd3 {[%clk 0:02:25.8]} 16... Nd7 {[%clk
0:02:23.7]} 17. Nc5 {[%clk 0:02:23.3]} 17... Nxc5 {[%clk 0:02:23.3]} 18. Rxc5
{[%clk 0:02:23.2]} 18... Na7 {[%clk 0:02:13.1]} 19. Rxc8+ {[%clk 0:02:19.6]}
19... Rxc8 {[%clk 0:02:12.5]} 20. Qd2 {[%clk 0:02:16.4]} 20... Nb5 {[%clk
0:02:10.4]} 21. Ne5 {[%clk 0:02:05.4]} 21... Nc3 {[%clk 0:01:36.2]} 22. Nd3
{[%clk 0:01:57.1]} 22... a5 {[%clk 0:01:36.2]} 23. Nc5 {[%clk 0:01:55.4]} 23...
Ba6 {[%clk 0:01:36.4]} 24. Nxa6 {[%clk 0:01:53.7]} 24... Qxa6 {[%clk 0:01:35.7]}
25. Bd3 {[%clk 0:01:54.3]} 25... Qa7 {[%clk 0:01:26.8]} 26. Rc1 {[%clk
0:01:51.9]} 26... Rc7 {[%clk 0:01:25.4]} 27. a4 {[%clk 0:01:45.2]} 27... Qb7
{[%clk 0:01:12.7]} 28. Rc2 {[%clk 0:01:41.3]} 28... Qc8 {[%clk 0:01:10.4]} 29.
h3 {[%clk 0:01:33.1]} 29... h5 {[%clk 0:01:09.4]} 30. g3 {[%clk 0:01:30.9]}
30... h4 {[%clk 0:01:03.5]} 31. g4 {[%clk 0:01:26.4]} 31... Kg7 {[%clk
0:01:00.8]} 32. Kg2 {[%clk 0:01:26]} 32... f5 {[%clk 0:00:52.1]} 33. gxf5 {[%clk
0:01:08.8]} 33... gxf5 {[%clk 0:00:42.7]} 34. f3 {[%clk 0:01:07.6]} 34... Kf6
{[%clk 0:00:33.7]} 35. e4 {[%clk 0:00:58.2]} 35... Qg8+ {[%clk 0:00:29.1]} 36.
Kh1 {[%clk 0:00:54.8]} 36... Rg7 {[%clk 0:00:26.9]} 37. Qh6+ {[%clk 0:00:47.6]}
37... Kf7 {[%clk 0:00:25.8]} 38. Qh5+ {[%clk 0:00:33.3]} 38... Kf8 {[%clk
0:00:20.3]} 39. Qxh4 {[%clk 0:00:23.4]} 39... fxe4 {[%clk 0:00:19.9]} 40. fxe4
{[%clk 0:00:23.1]} 40... dxe4 {[%clk 0:00:19.9]} 41. Rf2+ {[%clk 0:00:20.7]}
41... Ke8 {[%clk 0:00:19.3]} 42. Qh5+ {[%clk 0:00:19.5]} 42... Ke7 {[%clk
0:00:18.1]} 43. Qc5+ {[%clk 0:00:19.2]} 43... Kd7 {[%clk 0:00:18]} 44. Bb5+
{[%clk 0:00:19]} 44... Nxb5 {[%clk 0:00:17.4]} 45. Qxb5+ {[%clk 0:00:17.1]}
45... Kd6 {[%clk 0:00:15.4]} 46. Qb6+ {[%clk 0:00:13.5]} 46... Kd7 {[%clk
0:00:15.7]} 47. Qa7+ {[%clk 0:00:10.7]} 47... Kd6 {[%clk 0:00:15.5]} 48. Qc5+
{[%clk 0:00:09.8]} 48... Kd7 {[%clk 0:00:15.6]} 49. Qa7+ {[%clk 0:00:09.4]}
49... Kd6 {[%clk 0:00:15.8]} 50. Qc5+ {[%clk 0:00:04.2]} 50... Kd7 {[%clk
0:00:15.5]} 51. Qa7+ {[%clk 0:00:04.4]} 1/2-1/2

[Event "Late-Titled-Tuesday-Blitz-October-17-2023"]
[Site "Chess.com"]
[Date "2023.10.17"]
[Round "6"]
[White "cassoulet"]
[Black "Beca95"]
[Result "0-1"]
[WhiteElo "2795"]
[BlackElo "2927"]
[TimeControl "180+1"]
[EndTime "15:06:59 PDT"]
[Termination "Beca95 won by resignation"]

1. d4 {[%clk 0:03:00.9]} 1... Nf6 {[%clk 0:02:59.4]} 2. Bg5 {[%clk 0:03:00.2]}
2... e6 {[%clk 0:02:50.2]} 3. e4 {[%clk 0:02:55.9]} 3... h6 {[%clk 0:02:50.2]}
4. Bxf6 {[%clk 0:02:55.1]} 4... Qxf6 {[%clk 0:02:51.1]} 5. Nc3 {[%clk
0:02:54.9]} 5... d6 {[%clk 0:02:48.2]} 6. Nf3 {[%clk 0:02:54]} 6... Nd7 {[%clk
0:02:47.7]} 7. Bc4 {[%clk 0:02:48.8]} 7... a6 {[%clk 0:02:46.7]} 8. Qe2 {[%clk
0:02:48.4]} 8... b5 {[%clk 0:02:44.6]} 9. e5 {[%clk 0:02:46]} 9... Qe7 {[%clk
0:02:43.7]} 10. exd6 {[%clk 0:02:43.9]} 10... cxd6 {[%clk 0:02:43.2]} 11. Bb3
{[%clk 0:02:40.1]} 11... Bb7 {[%clk 0:02:43.2]} 12. O-O-O {[%clk 0:02:36.1]}
12... Nf6 {[%clk 0:02:41.2]} 13. d5 {[%clk 0:02:32.6]} 13... e5 {[%clk 0:02:39]}
14. Rhe1 {[%clk 0:02:32]} 14... O-O-O {[%clk 0:01:56.8]} 15. a4 {[%clk
0:02:20.1]} 15... b4 {[%clk 0:01:56]} 16. Na2 {[%clk 0:02:17.3]} 16... a5 {[%clk
0:01:56.5]} 17. Kb1 {[%clk 0:02:12.7]} 17... Kb8 {[%clk 0:01:56]} 18. c3 {[%clk
0:02:12.3]} 18... bxc3 {[%clk 0:01:56.2]} 19. Nxc3 {[%clk 0:02:11.9]} 19... g6
{[%clk 0:01:51.9]} 20. Nb5 {[%clk 0:02:05.3]} 20... Ba6 {[%clk 0:01:48]} 21.
Nfd4 {[%clk 0:01:56.3]} 21... exd4 {[%clk 0:01:44.9]} 22. Qxe7 {[%clk
0:01:56.3]} 22... Bxe7 {[%clk 0:01:45.8]} 23. Rxe7 {[%clk 0:01:56.5]} 23... Bxb5
{[%clk 0:01:46.5]} 24. axb5 {[%clk 0:01:57.2]} 24... Rd7 {[%clk 0:01:46.9]} 25.
Re2 {[%clk 0:01:51.2]} 25... Rb7 {[%clk 0:01:38.6]} 26. Bc4 {[%clk 0:01:51.2]}
26... Re8 {[%clk 0:01:36.4]} 27. Rxe8+ {[%clk 0:01:42.3]} 27... Nxe8 {[%clk
0:01:37.3]} 28. Rxd4 {[%clk 0:01:42.5]} 28... Re7 {[%clk 0:01:38]} 29. Kc2
{[%clk 0:01:28.6]} 29... Kb7 {[%clk 0:01:38.2]} 30. Kd2 {[%clk 0:01:24.2]} 30...
Nf6 {[%clk 0:01:37.7]} 31. f3 {[%clk 0:01:23.7]} 31... Nd7 {[%clk 0:01:37.2]}
32. b3 {[%clk 0:01:17]} 32... Nc5 {[%clk 0:01:36.2]} 33. Rf4 {[%clk 0:01:15.5]}
33... Nd7 {[%clk 0:01:26.6]} 34. h4 {[%clk 0:01:10.2]} 34... Kb6 {[%clk
0:01:20.1]} 35. g4 {[%clk 0:01:08.4]} 35... Kc5 {[%clk 0:01:18.3]} 36. Be2
{[%clk 0:00:59.5]} 36... Nb6 {[%clk 0:01:17.5]} 37. h5 {[%clk 0:00:47.7]} 37...
gxh5 {[%clk 0:00:49.2]} 38. gxh5 {[%clk 0:00:48.6]} 38... Nxd5 {[%clk
0:00:47.6]} 39. Rc4+ {[%clk 0:00:48.3]} 39... Kxb5 {[%clk 0:00:46.5]} 40. Rd4+
{[%clk 0:00:42.7]} 40... Kc5 {[%clk 0:00:45.9]} 41. Rc4+ {[%clk 0:00:43]} 41...
Kb6 {[%clk 0:00:46.1]} 42. Rd4 {[%clk 0:00:43.4]} 42... Kc6 {[%clk 0:00:29.3]}
43. Rc4+ {[%clk 0:00:43.3]} 43... Kd7 {[%clk 0:00:28.6]} 44. Ra4 {[%clk
0:00:43.6]} 44... Rxe2+ {[%clk 0:00:23.4]} 45. Kxe2 {[%clk 0:00:41.4]} 45...
Nc3+ {[%clk 0:00:23.6]} 46. Kd3 {[%clk 0:00:38]} 46... Nxa4 {[%clk 0:00:24.1]}
47. bxa4 {[%clk 0:00:38.9]} 47... d5 {[%clk 0:00:24]} 48. Ke3 {[%clk 0:00:32.7]}
48... Kd6 {[%clk 0:00:23.5]} 49. Kf4 {[%clk 0:00:33]} 49... Ke6 {[%clk
0:00:23.5]} 50. Ke3 {[%clk 0:00:31.7]} 50... Ke5 {[%clk 0:00:23.8]} 51. Kd3
{[%clk 0:00:30.2]} 51... f5 {[%clk 0:00:22.5]} 52. Ke3 {[%clk 0:00:30]} 52...
d4+ {[%clk 0:00:22.8]} 53. Kd3 {[%clk 0:00:30.4]} 53... Kf4 {[%clk 0:00:23.3]}
54. Kxd4 {[%clk 0:00:30.8]} 54... Kxf3 {[%clk 0:00:23.8]} 55. Kc5 {[%clk
0:00:14.4]} 55... f4 {[%clk 0:00:23.6]} 56. Kb5 {[%clk 0:00:15.3]} 56... Kg4
{[%clk 0:00:23.1]} 57. Kxa5 {[%clk 0:00:16.2]} 57... f3 {[%clk 0:00:23.6]} 58.
Kb6 {[%clk 0:00:17.1]} 58... f2 {[%clk 0:00:24.1]} 59. a5 {[%clk 0:00:18]} 59...
f1=Q {[%clk 0:00:24.2]} 60. a6 {[%clk 0:00:18.9]} 60... Qg2 {[%clk 0:00:24.6]}
61. a7 {[%clk 0:00:19.8]} 61... Qa8 {[%clk 0:00:23.2]} 0-1

[Event "Late-Titled-Tuesday-Blitz-October-17-2023"]
[Site "Chess.com"]
[Date "2023.10.17"]
[Round "6"]
[White "Chempiblinka"]
[Black "stasOR4ik"]
[Result "1-0"]
[WhiteElo "2314"]
[BlackElo "2431"]
[TimeControl "180+1"]
[EndTime "15:06:59 PDT"]
[Termination "Chempiblinka won by checkmate"]

1. Nf3 {[%clk 0:02:58.4]} 1... d5 {[%clk 0:03:00.2]} 2. g3 {[%clk 0:02:57.2]}
2... Nf6 {[%clk 0:03:00.4]} 3. Bg2 {[%clk 0:02:56.6]} 3... Nbd7 {[%clk
0:03:01.1]} 4. c4 {[%clk 0:02:56.6]} 4... c6 {[%clk 0:03:00.9]} 5. O-O {[%clk
0:02:55.9]} 5... e5 {[%clk 0:03:01.3]} 6. cxd5 {[%clk 0:02:53.2]} 6... cxd5
{[%clk 0:03:01.2]} 7. d3 {[%clk 0:02:47.9]} 7... Bd6 {[%clk 0:02:59.6]} 8. Nc3
{[%clk 0:02:42]} 8... O-O {[%clk 0:02:56]} 9. Qb3 {[%clk 0:02:41.6]} 9... Nb6
{[%clk 0:02:52.2]} 10. a4 {[%clk 0:02:40]} 10... Be6 {[%clk 0:02:51.1]} 11. a5
{[%clk 0:02:35.9]} 11... d4 {[%clk 0:02:48.4]} 12. Qc2 {[%clk 0:02:19.9]} 12...
dxc3 {[%clk 0:02:37.7]} 13. axb6 {[%clk 0:02:20]} 13... cxb2 {[%clk 0:02:38.1]}
14. Bxb2 {[%clk 0:02:18.3]} 14... Qxb6 {[%clk 0:02:37.1]} 15. Nxe5 {[%clk
0:02:17.5]} 15... Rfc8 {[%clk 0:02:32.4]} 16. Qd2 {[%clk 0:02:11]} 16... Bb4
{[%clk 0:02:26.2]} 17. Qg5 {[%clk 0:02:05.6]} 17... h6 {[%clk 0:02:22.8]} 18.
Qh4 {[%clk 0:02:04.9]} 18... a5 {[%clk 0:02:16.2]} 19. Rab1 {[%clk 0:01:51.6]}
19... Ba2 {[%clk 0:02:09.4]} 20. Ra1 {[%clk 0:01:41.2]} 20... Bd5 {[%clk
0:02:06.7]} 21. Nd7 {[%clk 0:01:30.1]} 21... Nxd7 {[%clk 0:01:49.2]} 22. Bxd5
{[%clk 0:01:28.6]} 22... Rc2 {[%clk 0:01:47.4]} 23. Bd4 {[%clk 0:01:20.4]} 23...
Qa6 {[%clk 0:01:07.7]} 24. Qg4 {[%clk 0:01:15.6]} 24... Nf6 {[%clk 0:01:06.8]}
25. Bxf6 {[%clk 0:01:07.4]} 25... Qxf6 {[%clk 0:01:06.8]} 26. Rac1 {[%clk
0:01:02.8]} 26... Rxe2 {[%clk 0:00:50.7]} 27. Qxe2 {[%clk 0:00:55.6]} 27... Rd8
{[%clk 0:00:48.8]} 28. Bxb7 {[%clk 0:00:53.4]} 28... a4 {[%clk 0:00:48.8]} 29.
Rc8 {[%clk 0:00:43.8]} 29... a3 {[%clk 0:00:49.1]} 30. Rxd8+ {[%clk 0:00:42.6]}
30... Qxd8 {[%clk 0:00:48.6]} 31. Be4 {[%clk 0:00:38]} 31... Bc3 {[%clk
0:00:45.8]} 32. Qa2 {[%clk 0:00:36.5]} 32... Bb2 {[%clk 0:00:41.5]} 33. Rb1
{[%clk 0:00:35.3]} 33... Qc7 {[%clk 0:00:34]} 34. Bd5 {[%clk 0:00:33.6]} 34...
Kf8 {[%clk 0:00:31.3]} 35. Be4 {[%clk 0:00:32.3]} 35... Qc2 {[%clk 0:00:28.8]}
36. Kg2 {[%clk 0:00:29.1]} 36... g6 {[%clk 0:00:27]} 37. h4 {[%clk 0:00:28.3]}
37... f5 {[%clk 0:00:27]} 38. Bd5 {[%clk 0:00:24.1]} 38... Qxd3 {[%clk
0:00:27.1]} 39. Re1 {[%clk 0:00:22.3]} 39... f4 {[%clk 0:00:20.6]} 40. Qc4
{[%clk 0:00:17]} 40... Qxc4 {[%clk 0:00:12.6]} 41. Bxc4 {[%clk 0:00:16.8]} 41...
fxg3 {[%clk 0:00:12.7]} 42. fxg3 {[%clk 0:00:15.8]} 42... Kg7 {[%clk 0:00:12.7]}
43. Kf3 {[%clk 0:00:16]} 43... Kf6 {[%clk 0:00:13]} 44. Ke4 {[%clk 0:00:16.2]}
44... g5 {[%clk 0:00:12.4]} 45. h5 {[%clk 0:00:16.1]} 45... Bc3 {[%clk
0:00:10.9]} 46. Rc1 {[%clk 0:00:15.3]} 46... Bb2 {[%clk 0:00:10.8]} 47. Rd1
{[%clk 0:00:15.4]} 47... Be5 {[%clk 0:00:09.3]} 48. g4 {[%clk 0:00:14.8]} 48...
Bb2 {[%clk 0:00:09]} 49. Ba2 {[%clk 0:00:14.7]} 49... Kg7 {[%clk 0:00:09.2]} 50.
Rd7+ {[%clk 0:00:14.5]} 50... Kh8 {[%clk 0:00:08.8]} 51. Kf5 {[%clk 0:00:14.4]}
51... Bf6 {[%clk 0:00:09.1]} 52. Kg6 {[%clk 0:00:14.2]} 52... Bg7 {[%clk
0:00:09.2]} 53. Rd8+ {[%clk 0:00:13.9]} 53... Bf8 {[%clk 0:00:10.1]} 54. Rxf8#
{[%clk 0:00:14.5]} 1-0